[Event "Istanbul Open 2019"]
[Site "Istanbul"]
[Date "2019.09.01"]
[Round "9.6"]
[White "Bayramov, Elvin"]
[Black "Tarhan, Adar"]
[Result "1-0"]
[ECO "C26"]
[WhiteElo "2198"]
[BlackElo "1949"]
[Annotator "NA"]
[PlyCount "77"]
[EventDate "2019.08.26"]
[EventType "swiss"]
[EventCountry "TUR"]
[SourceTitle "playchess.com"]
[Source "ChessBase"]
[SourceQuality "1"]
[TimeControl "5400+30"]

1. e4 e5 2. Nc3 Nf6 3. Nf3 Nc6 4. g3 Bc5 5. Bg2 d6 6. d3 a6 7. O-O O-O 8. Bg5 h6 9. Be3 {[%emt 0:13:30]} Bxe3 {[%emt 0:13:30]} 10. fxe3 {[%emt 0:00:30]} Ne7 {[%emt 0:00:30]} 11. Nh4 {[%emt 0:00:30]} c6 {[%emt 0:00:30]} 12. b3 {[%emt 0:00:30]} Ng4 {[%emt 0:00:30]} 13. Qe2 {[%emt 0:00:30]} d5 {[%emt 0:00:30]} 14. Nf5 {[%emt 0:00:30]} Nxf5 {[%emt 0:00:30]} 15. exf5 {[%emt 0:00:30]} Qg5 {[%emt 0:00:30]} 16. e4 {[%emt 0:00:30]} Ne3 {[%emt 0:00:30]} 17. Rf3 {[%emt 0:00:30]} d4 {[%emt 0:00:30]} 18. h4 {[%emt 0:00:30]} Qe7 {[%emt 0:00:30]} 19. Nd1 {[%emt 0:00:30]} Nxd1 {[%emt 0:00:30]} 20. Qxd1 {[%emt 0:00:30]} f6 {[%emt 0:00:30]} 21. g4 {[%emt 0:00:30]} a5 {[%emt 0:00:30]} 22. a4 {[%emt 0:00:30]} b5 {[%emt 0:00:30]} 23. Rg3 {[%emt 0:00:30]} bxa4 {[%emt 0:00:30]} 24. Rxa4 {[%emt 0:00:30]} c5 {[%emt 0:00:30]} 25. Qd2 {[%emt 0:00:30]} Qc7 {[%emt 0:00:30]} 26. g5 {[%emt 0:00:30]} hxg5 {[%emt 0:00:30]} 27. hxg5 {[%emt 0:00:30]} Bd7 {[%emt 0:00:30]} 28. Ra1 {[%emt 0:00:30]} a4 {[%emt 0:00:30]} 29. gxf6 {[%emt 0:00:30]} Rxf6 {[%emt 0:00:30]} 30. Qg5 {[%emt 0:00:30]} Rf7 {[%emt 0:00:30]} 31. Bf3 {[%emt 0:00:30]} Be8 {[%emt 0:00:30]} 32. Bh5 {[%emt 0:00:30]} Rf8 {[%emt 0:00:30]} 33. Bxe8 {[%emt 0:00:30]} Rfxe8 {[%emt 0:00:30]} 34. f6 {[%emt 0:00:30]} axb3 {[%emt 0:00:30]} 35. Rxa8 {[%emt 0:00:30]} Rxa8 {[%emt 0:00:30]} 36. cxb3 {[%emt 0:00:30]} c4 {[%emt 0:00:30]} 37. bxc4 {[%emt 0:00:30]} Ra1+ {[%emt 0:00:30]} 38. Kg2 {[%emt 0:00:30]} Ra2+ {[%emt 0:00:30]} 39. Kf3 {[%emt 0:00:30]} 1-0

[Event "Istanbul Open 2019"]
[Site "Istanbul"]
[Date "2019.09.01"]
[Round "9.7"]
[White "Erdogan, Anil Berk"]
[Black "Ozdemir, Serhan Berat"]
[Result "1/2-1/2"]
[ECO "B43"]
[WhiteElo "2144"]
[BlackElo "1978"]
[Annotator "NA"]
[PlyCount "92"]
[EventDate "2019.08.26"]
[EventType "swiss"]
[EventCountry "TUR"]
[SourceTitle "playchess.com"]
[Source "ChessBase"]
[SourceQuality "1"]
[TimeControl "5400+30"]

1. e4 {[%emt 0:13:30]} c5 {[%emt 0:07:30]} 2. Nf3 {[%emt 0:00:30]} e6 {[%emt 0:00:30]} 3. d4 {[%emt 0:00:30]} cxd4 {[%emt 0:00:30]} 4. Nxd4 {[%emt 0:00:30]} a6 {[%emt 0:00:30]} 5. Nc3 {[%emt 0:00:30]} b5 {[%emt 0:00:30]} 6. g3 {[%emt 0:00:30]} b4 {[%emt 0:00:30]} 7. Na4 {[%emt 0:00:30]} Bb7 {[%emt 0:00:30]} 8. Bg2 {[%emt 0:00:30]} Nf6 {[%emt 0:00:30]} 9. Qe2 {[%emt 0:00:30]} d6 {[%emt 0:00:30]} 10. O-O {[%emt 0:00:30]} Nc6 {[%emt 0:00:30]} 11. Nb3 {[%emt 0:00:30]} Be7 {[%emt 0:00:30]} 12. Rd1 {[%emt 0:00:30]} Qc7 {[%emt 0:00:30]} 13. Bf4 {[%emt 0:00:30]} Ne5 {[%emt 0:00:30]} 14. Nd4 {[%emt 0:00:30]} O-O {[%emt 0:00:30]} 15. b3 {[%emt 0:00:30]} Rac8 {[%emt 0:00:30]} 16. Rac1 {[%emt 0:00:30]} Ned7 {[%emt 0:00:30]} 17. c4 {[%emt 0:00:30]} bxc3 {[%emt 0:00:30]} 18. Rxc3 {[%emt 0:00:30]} Qa5 {[%emt 0:00:30]} 19. Rxc8 {[%emt 0:00:30]} Rxc8 {[%emt 0:00:30]} 20. e5 {[%emt 0:00:30]} Nd5 {[%emt 0:00:30]} 21. exd6 {[%emt 0:00:30]} Nxf4 {[%emt 0:00:30]} 22. gxf4 {[%emt 0:00:30]} Bxg2 {[%emt 0:00:30]} 23. Kxg2 {[%emt 0:00:30]} Bf6 {[%emt 0:00:30]} 24. Qf3 {[%emt 0:00:30]} Bxd4 {[%emt 0:00:30]} 25. Rxd4 {[%emt 0:00:30]} Qf5 {[%emt 0:00:30]} 26. h3 {[%emt 0:00:30]} Rd8 {[%emt 0:00:30]} 27. Qg4 {[%emt 0:00:30]} Qf6 {[%emt 0:00:30]} 28. Qg5 {[%emt 0:00:30]} Qxd4 {[%emt 0:00:30]} 29. Qxd8+ {[%emt 0:00:30]} Nf8 {[%emt 0:00:30]} 30. Nb6 {[%emt 0:00:30]} Qe4+ {[%emt 0:00:30]} 31. Kg3 {[%emt 0:00:30]} Qd3+ {[%emt 0:00:30]} 32. Kg2 {[%emt 0:00:30]} Qe4+ {[%emt 0:00:30]} 33. Kg3 {[%emt 0:00:30]} Qd3+ {[%emt 0:00:30]} 34. Kg2 {[%emt 0:00:30]} Qe4+ {[%emt 0:00:30]} 35. Kg3 {[%emt 0:00:30]} h5 {[%emt 0:00:30]} 36. Nd7 {[%emt 0:00:30]} h4+ {[%emt 0:00:30]} 37. Kh2 {[%emt 0:00:30]} Qxf4+ {[%emt 0:00:30]} 38. Kg1 {[%emt 0:00:30]} Qc1+ {[%emt 0:00:30]} 39. Kh2 {[%emt 0:00:30]} Qf4+ {[%emt 0:00:30]} 40. Kg1 {[%emt 0:00:30]} Qc1+ {[%emt 0:00:30]} 41. Kh2 {[%emt 0:00:30]} Qf4+ {[%emt 0:00:30]} 42. Kg2 {[%emt 0:00:30]} Qe4+ {[%emt 0:00:30]} 43. Kg1 {[%emt 0:00:30]} Qe1+ {[%emt 0:00:30]} 44. Kg2 {[%emt 0:00:30]} Qe4+ {[%emt 0:00:30]} 45. Kg1 {[%emt 0:00:30]} Qe1+ {[%emt 0:00:30]} 46. Kg2 {[%emt 0:00:30]} Qe4+ {[%emt 0:00:30]} 1/2-1/2

[Event "Istanbul Open 2019"]
[Site "Istanbul"]
[Date "2019.09.01"]
[Round "9.10"]
[White "Yaylali, Adnan Dogan"]
[Black "Mammadov, Sadig"]
[Result "0-1"]
[ECO "E71"]
[WhiteElo "1982"]
[BlackElo "2243"]
[Annotator "NA"]
[PlyCount "92"]
[EventDate "2019.08.26"]
[EventType "swiss"]
[EventCountry "TUR"]
[SourceTitle "playchess.com"]
[Source "ChessBase"]
[SourceQuality "1"]
[TimeControl "5400+30"]

1. d4 {[%emt 0:29:30]} Nf6 {[%emt 0:36:30]} 2. c4 {[%emt 0:00:30]} g6 {[%emt 0:00:30]} 3. Nc3 {[%emt 0:00:30]} Bg7 {[%emt 0:00:30]} 4. e4 {[%emt 0:00:30]} d6 {[%emt 0:00:30]} 5. h3 {[%emt 0:00:30]} Nbd7 {[%emt 0:00:30]} 6. Be3 {[%emt 0:00:30]} e5 {[%emt 0:00:30]} 7. d5 {[%emt 0:00:30]} O-O {[%emt 0:00:30]} 8. g4 {[%emt 0:00:30]} Nc5 {[%emt 0:00:30]} 9. f3 {[%emt 0:00:30]} a5 {[%emt 0:00:30]} 10. Qd2 {[%emt 0:00:30]} Ne8 {[%emt 0:00:30]} 11. h4 {[%emt 0:00:30]} f5 {[%emt 0:00:30]} 12. gxf5 {[%emt 0:00:30]} gxf5 {[%emt 0:00:30]} 13. exf5 {[%emt 0:00:30]} Bxf5 {[%emt 0:00:30]} 14. O-O-O {[%emt 0:00:30]} a4 {[%emt 0:00:30]} 15. Nh3 {[%emt 0:00:30]} a3 {[%emt 0:00:30]} 16. b3 {[%emt 0:00:30]} Qf6 {[%emt 0:00:30]} 17. Bg5 {[%emt 0:00:30]} Qf7 {[%emt 0:00:30]} 18. Nf2 {[%emt 0:00:30]} Nf6 {[%emt 0:00:30]} 19. Bh3 {[%emt 0:00:30]} Nh5 {[%emt 0:00:30]} 20. Nce4 {[%emt 0:00:30]} b6 {[%emt 0:00:30]} 21. Nf6+ {[%emt 0:00:30]} Nxf6 {[%emt 0:00:30]} 22. Bxf5 {[%emt 0:00:30]} Nxd5 {[%emt 0:00:30]} 23. Bc2 {[%emt 0:00:30]} Nf4 {[%emt 0:00:30]} 24. Ng4 {[%emt 0:00:30]} Nce6 {[%emt 0:00:30]} 25. Nh6+ {[%emt 0:00:30]} Bxh6 {[%emt 0:00:30]} 26. Bxh6 {[%emt 0:00:30]} Rfe8 {[%emt 0:00:30]} 27. Qe3 {[%emt 0:00:30]} Kh8 {[%emt 0:00:30]} 28. Rhg1 {[%emt 0:00:30]} Rg8 {[%emt 0:00:30]} 29. Qe4 {[%emt 0:00:30]} Rab8 {[%emt 0:00:30]} 30. Rg4 {[%emt 0:00:30]} Rg6 {[%emt 0:00:30]} 31. Bg5 {[%emt 0:00:30]} Rbg8 {[%emt 0:00:30]} 32. Rdg1 {[%emt 0:00:30]} Nh3 {[%emt 0:00:30]} 33. R1g2 {[%emt 0:00:30]} Nhxg5 {[%emt 0:00:30]} 34. hxg5 {[%emt 0:00:30]} Rxg5 {[%emt 0:00:30]} 35. Rh2 {[%emt 0:00:30]} R8g7 {[%emt 0:00:30]} 36. Qa8+ {[%emt 0:00:30]} Qg8 {[%emt 0:00:30]} 37. Qd5 {[%emt 0:00:30]} Rxg4 {[%emt 0:00:30]} 38. fxg4 {[%emt 0:00:30]} Nd4 {[%emt 0:00:30]} 39. Be4 {[%emt 0:00:30]} Qxd5 {[%emt 0:00:30]} 40. cxd5 {[%emt 0:00:30]} Rxg4 {[%emt 0:00:30]} 41. Rxh7+ {[%emt 0:00:30]} Kg8 {[%emt 0:00:30]} 42. Rxc7 {[%emt 0:00:30]} Rxe4 {[%emt 0:00:30]} 43. Ra7 {[%emt 0:00:30]} Re1+ {[%emt 0:00:30]} 44. Kd2 {[%emt 0:00:30]} Re2+ {[%emt 0:00:30]} 45. Kd3 {[%emt 0:00:30]} Rxa2 {[%emt 0:00:30]} 46. Ra6 {[%emt 0:00:30]} Rb2 {[%emt 0:00:30]} 0-1

[Event "Istanbul Open 2019"]
[Site "Istanbul"]
[Date "2019.09.01"]
[Round "9.11"]
[White "Portakalci, Yusuf"]
[Black "Mohannad, Farhan"]
[Result "0-1"]
[ECO "A63"]
[WhiteElo "1831"]
[BlackElo "2151"]
[Annotator "NA"]
[PlyCount "90"]
[EventDate "2019.08.26"]
[EventType "swiss"]
[EventCountry "TUR"]
[SourceTitle "playchess.com"]
[Source "ChessBase"]
[SourceQuality "1"]
[TimeControl "5400+30"]

1. d4 {[%emt 0:03:30]} Nf6 {[%emt 0:00:00]} 2. c4 {[%emt 0:00:30]} g6 {[%emt 0:00:00]} 3. Nf3 {[%emt 0:00:30]} Bg7 {[%emt 0:00:00]} 4. g3 {[%emt 0:00:30]} O-O {[%emt 0:00:00]} 5. Bg2 {[%emt 0:00:30]} c5 {[%emt 0:00:30]} 6. d5 {[%emt 0:00:30]} e6 {[%emt 0:00:30]} 7. Nc3 {[%emt 0:00:30]} exd5 {[%emt 0:00:30]} 8. cxd5 {[%emt 0:00:30]} Re8 {[%emt 0:00:30]} 9. O-O {[%emt 0:00:30]} d6 {[%emt 0:00:30]} 10. Re1 {[%emt 0:00:30]} a6 {[%emt 0:03:30]} 11. a4 {[%emt 0:00:30]} Nbd7 {[%emt 0:00:30]} 12. e4 {[%emt 0:00:30]} Qc7 $14 {[%emt 0:25:00]} 13. Qc2 {[%emt 0:49:30]} Rb8 {[%emt 0:00:30]} 14. a5 {[%emt 0:00:30]} b5 {[%emt 0:00:30]} 15. axb6 {[%emt 0:00:30]} Rxb6 {[%emt 0:00:30]} 16. h3 {[%emt 0:00:30]} Rb4 {[%emt 0:00:30]} 17. Nh2 {[%emt 0:00:30]} c4 {[%emt 0:00:30]} 18. Ra4 {[%emt 0:00:30]} Rxa4 {[%emt 0:00:30]} 19. Qxa4 {[%emt 0:00:30]} Nb6 {[%emt 0:00:30]} 20. Qd1 {[%emt 0:00:30]} Nfd7 {[%emt 0:00:30]} 21. Na4 {[%emt 0:00:30]} Ne5 {[%emt 0:00:30]} 22. Bf1 {[%emt 0:00:30]} Bd7 {[%emt 0:00:30]} 23. Nxb6 {[%emt 0:00:30]} Qxb6 {[%emt 0:00:30]} 24. Qc2 {[%emt 0:00:30]} Rb8 {[%emt 0:00:30]} 25. Kg2 {[%emt 0:00:30]} f5 {[%emt 0:00:30]} 26. f4 {[%emt 0:00:30]} Nd3 {[%emt 0:00:30]} 27. Bxd3 {[%emt 0:00:30]} cxd3 {[%emt 0:00:30]} 28. Qxd3 {[%emt 0:00:30]} fxe4 {[%emt 0:00:30]} 29. Qxe4 {[%emt 0:00:30]} Re8 {[%emt 0:00:30]} 30. Qxe8+ {[%emt 0:00:30]} Bxe8 {[%emt 0:00:30]} 31. Rxe8+ {[%emt 0:00:30]} Kf7 {[%emt 0:00:30]} 32. Re2 {[%emt 0:00:30]} Qb5 {[%emt 0:00:30]} 33. Kf2 {[%emt 0:00:30]} Bd4+ {[%emt 0:00:30]} 34. Be3 {[%emt 0:00:30]} Bxb2 {[%emt 0:00:30]} 35. Nf3 {[%emt 0:00:30]} Bf6 {[%emt 0:00:30]} 36. g4 {[%emt 0:00:30]} a5 {[%emt 0:00:30]} 37. f5 {[%emt 0:00:30]} gxf5 {[%emt 0:00:30]} 38. g5 {[%emt 0:00:30]} Bc3 {[%emt 0:00:30]} 39. h4 {[%emt 0:00:30]} a4 {[%emt 0:00:30]} 40. h5 {[%emt 0:00:30]} a3 {[%emt 0:00:30]} 41. g6+ {[%emt 0:00:30]} hxg6 {[%emt 0:00:30]} 42. Ng5+ {[%emt 0:00:30]} Kg8 {[%emt 0:00:30]} 43. h6 {[%emt 0:00:30]} Qxe2+ {[%emt 0:00:30]} 44. Kxe2 {[%emt 0:00:30]} a2 {[%emt 0:00:30]} 45. h7+ {[%emt 0:00:30]} Kh8 {[%emt 0:00:30]} 0-1

[Event "Istanbul Open 2019"]
[Site "Istanbul"]
[Date "2019.09.01"]
[Round "9.12"]
[White "Emir, Emirhan"]
[Black "Ozsakallioglu, Akin"]
[Result "1/2-1/2"]
[ECO "A65"]
[WhiteElo "1952"]
[BlackElo "2067"]
[Annotator "NA"]
[PlyCount "108"]
[EventDate "2019.08.26"]
[EventType "swiss"]
[EventCountry "TUR"]
[SourceTitle "playchess.com"]
[Source "ChessBase"]
[SourceQuality "1"]
[TimeControl "5400+30"]

1. c4 {[%emt 0:42:30]} Nf6 {[%emt 0:21:30]} 2. Nc3 {[%emt 0:00:30]} g6 {[%emt 0:00:30]} 3. e4 {[%emt 0:00:30]} d6 {[%emt 0:00:30]} 4. d4 {[%emt 0:00:30]} Bg7 {[%emt 0:00:30]} 5. f3 {[%emt 0:00:30]} O-O {[%emt 0:00:30]} 6. Be3 {[%emt 0:00:30]} c5 {[%emt 0:00:30]} 7. d5 {[%emt 0:00:30]} e6 {[%emt 0:00:30]} 8. Qd2 {[%emt 0:00:30]} exd5 {[%emt 0:00:30]} 9. cxd5 {[%emt 0:00:30]} Nbd7 {[%emt 0:00:30]} 10. Nh3 {[%emt 0:00:30]} a6 {[%emt 0:00:30]} 11. a4 {[%emt 0:00:30]} Ne5 {[%emt 0:00:30]} 12. Nf2 {[%emt 0:00:30]} Bd7 {[%emt 0:00:30]} 13. h3 {[%emt 0:00:30]} b5 {[%emt 0:00:30]} 14. f4 {[%emt 0:00:30]} Nc4 {[%emt 0:00:30]} 15. Bxc4 {[%emt 0:00:30]} bxc4 {[%emt 0:00:30]} 16. O-O {[%emt 0:00:30]} Qb8 {[%emt 0:00:30]} 17. Rfe1 {[%emt 0:00:30]} Re8 {[%emt 0:00:30]} 18. Qc2 {[%emt 0:00:30]} Qb4 {[%emt 0:00:30]} 19. Bd2 {[%emt 0:00:30]} Reb8 {[%emt 0:00:30]} 20. Nb5 {[%emt 0:00:30]} axb5 {[%emt 0:00:30]} 21. Bxb4 {[%emt 0:00:30]} cxb4 {[%emt 0:00:30]} 22. axb5 {[%emt 0:00:30]} Bxb5 {[%emt 0:00:30]} 23. Rxa8 {[%emt 0:00:30]} Rxa8 {[%emt 0:00:30]} 24. Qd2 {[%emt 0:00:30]} Ra4 {[%emt 0:00:30]} 25. e5 {[%emt 0:00:30]} Nd7 {[%emt 0:00:30]} 26. e6 {[%emt 0:00:30]} Nc5 {[%emt 0:00:30]} 27. exf7+ {[%emt 0:00:30]} Kxf7 {[%emt 0:00:30]} 28. Qe2 {[%emt 0:00:30]} Bf6 {[%emt 0:00:30]} 29. Ne4 {[%emt 0:00:30]} Nxe4 {[%emt 0:00:30]} 30. Qxe4 {[%emt 0:00:30]} c3 {[%emt 0:00:30]} 31. b3 {[%emt 0:00:30]} Ra7 {[%emt 0:00:30]} 32. Qxb4 {[%emt 0:00:30]} Bd3 {[%emt 0:00:30]} 33. Qb6 {[%emt 0:00:30]} Rd7 {[%emt 0:00:30]} 34. Qc6 {[%emt 0:00:30]} Bd4+ {[%emt 0:00:30]} 35. Kh2 {[%emt 0:00:30]} Re7 {[%emt 0:00:30]} 36. Rd1 {[%emt 0:00:30]} Re3 {[%emt 0:00:30]} 37. b4 {[%emt 0:00:30]} c2 {[%emt 0:00:30]} 38. Rxd3 {[%emt 0:00:30]} Rxd3 {[%emt 0:00:30]} 39. Qxc2 {[%emt 0:00:30]} Rc3 {[%emt 0:00:30]} 40. Qd2 {[%emt 0:00:30]} Bf6 {[%emt 0:00:30]} 41. b5 {[%emt 0:00:30]} Rb3 {[%emt 0:00:30]} 42. Qe2 {[%emt 0:00:30]} Bh4 {[%emt 0:00:30]} 43. Qg4 {[%emt 0:00:30]} Bf2 {[%emt 0:00:30]} 44. f5 {[%emt 0:00:30]} Bc5 {[%emt 0:00:30]} 45. fxg6+ {[%emt 0:00:30]} hxg6 {[%emt 0:00:30]} 46. Qd7+ {[%emt 0:00:30]} Kf6 {[%emt 0:00:30]} 47. Qe6+ {[%emt 0:00:30]} Kg7 {[%emt 0:00:30]} 48. Qe7+ {[%emt 0:00:30]} Kh6 {[%emt 0:00:30]} 49. h4 {[%emt 0:00:30]} Rxb5 {[%emt 0:00:30]} 50. Qe8 {[%emt 0:00:30]} Rb7 {[%emt 0:00:30]} 51. Qh8+ {[%emt 0:00:30]} Rh7 {[%emt 0:00:30]} 52. Qf8+ {[%emt 0:00:30]} Rg7 {[%emt 0:00:30]} 53. Qh8+ {[%emt 0:00:30]} Rh7 {[%emt 0:00:30]} 54. Qf8+ {[%emt 0:00:30]} Rg7 {[%emt 0:00:30]} 1/2-1/2

[Event "Istanbul Open 2019"]
[Site "Istanbul"]
[Date "2019.09.01"]
[Round "9.13"]
[White "Caglar, Ahmet Ata"]
[Black "Valiyev, Shahin"]
[Result "1/2-1/2"]
[ECO "D78"]
[WhiteElo "2053"]
[BlackElo "1944"]
[Annotator "NA"]
[PlyCount "118"]
[EventDate "2019.08.26"]
[EventType "swiss"]
[EventCountry "TUR"]
[SourceTitle "playchess.com"]
[Source "ChessBase"]
[SourceQuality "1"]
[TimeControl "5400+30"]

1. Nf3 {[%emt 0:30:30]} Nf6 {[%emt 0:33:30]} 2. g3 {[%emt 0:00:30]} g6 {[%emt 0:00:30]} 3. Bg2 {[%emt 0:00:30]} Bg7 {[%emt 0:00:30]} 4. O-O {[%emt 0:00:30]} O-O {[%emt 0:00:30]} 5. c4 {[%emt 0:00:30]} c6 {[%emt 0:00:30]} 6. b3 {[%emt 0:00:30]} Ne4 {[%emt 0:00:30]} 7. d4 {[%emt 0:00:30]} d5 {[%emt 0:00:30]} 8. Bb2 {[%emt 0:00:30]} Nd7 {[%emt 0:00:30]} 9. Nc3 {[%emt 0:00:30]} Ndf6 {[%emt 0:00:30]} 10. Nd2 {[%emt 0:00:30]} Nxc3 {[%emt 0:00:30]} 11. Bxc3 {[%emt 0:00:30]} b5 {[%emt 0:00:30]} 12. e4 {[%emt 0:00:30]} bxc4 {[%emt 0:00:30]} 13. e5 {[%emt 0:00:30]} Ne4 {[%emt 0:00:30]} 14. Nxe4 {[%emt 0:00:30]} dxe4 {[%emt 0:00:30]} 15. bxc4 {[%emt 0:00:30]} Bf5 {[%emt 0:00:30]} 16. Qe2 {[%emt 0:00:30]} c5 {[%emt 0:00:30]} 17. Bxe4 {[%emt 0:00:30]} cxd4 {[%emt 0:00:30]} 18. Bxa8 {[%emt 0:00:30]} dxc3 {[%emt 0:00:30]} 19. Be4 {[%emt 0:00:30]} Qd4 {[%emt 0:00:30]} 20. Bxf5 {[%emt 0:00:30]} gxf5 {[%emt 0:00:30]} 21. Rfe1 {[%emt 0:00:30]} Bh6 {[%emt 0:00:30]} 22. Qc2 {[%emt 0:00:30]} e6 {[%emt 0:00:30]} 23. Rad1 {[%emt 0:00:30]} Bd2 {[%emt 0:00:30]} 24. Re2 {[%emt 0:00:30]} Rc8 {[%emt 0:00:30]} 25. Rexd2 {[%emt 0:00:30]} cxd2 {[%emt 0:00:30]} 26. Rxd2 {[%emt 0:00:30]} Rxc4 {[%emt 0:00:30]} 27. Rxd4 {[%emt 0:00:30]} Rxc2 {[%emt 0:00:30]} 28. Ra4 {[%emt 0:00:30]} Rc7 {[%emt 0:00:30]} 29. Kg2 {[%emt 0:00:30]} Kg7 {[%emt 0:00:30]} 30. Ra6 {[%emt 0:00:30]} Rd7 {[%emt 0:00:30]} 31. Kf3 {[%emt 0:00:30]} Kg6 {[%emt 0:00:30]} 32. a4 {[%emt 0:00:30]} Kg5 {[%emt 0:00:30]} 33. h3 {[%emt 0:00:30]} h6 {[%emt 0:00:30]} 34. Ke3 {[%emt 0:00:30]} Rc7 {[%emt 0:00:30]} 35. f4+ {[%emt 0:00:30]} Kg6 {[%emt 0:00:30]} 36. Kd4 {[%emt 0:00:30]} h5 {[%emt 0:00:30]} 37. h4 {[%emt 0:00:30]} Kg7 {[%emt 0:00:30]} 38. Ra5 {[%emt 0:00:30]} Kf8 {[%emt 0:00:30]} 39. Rc5 {[%emt 0:00:30]} Rd7+ {[%emt 0:00:30]} 40. Kc4 {[%emt 0:00:30]} Rd1 {[%emt 0:00:30]} 41. Kb5 {[%emt 0:00:30]} Rd3 {[%emt 0:00:30]} 42. Ka6 {[%emt 0:00:30]} Rxg3 {[%emt 0:00:30]} 43. Kxa7 {[%emt 0:00:30]} Rg4 {[%emt 0:00:30]} 44. Kb6 {[%emt 0:00:30]} Rxh4 {[%emt 0:00:30]} 45. a5 {[%emt 0:00:30]} Rxf4 {[%emt 0:00:30]} 46. a6 {[%emt 0:00:30]} Rb4+ {[%emt 0:00:30]} 47. Rb5 {[%emt 0:00:30]} Ra4 {[%emt 0:00:30]} 48. a7 {[%emt 0:00:30]} Rxa7 {[%emt 0:00:30]} 49. Kxa7 {[%emt 0:00:30]} Kg7 {[%emt 0:00:30]} 50. Kb6 {[%emt 0:00:30]} f6 {[%emt 0:00:30]} 51. Kc5 {[%emt 0:00:30]} fxe5 {[%emt 0:00:30]} 52. Kd6 {[%emt 0:00:30]} Kf6 {[%emt 0:00:30]} 53. Rxe5 {[%emt 0:00:30]} h4 {[%emt 0:00:30]} 54. Re1 {[%emt 0:00:30]} Kg5 {[%emt 0:00:30]} 55. Kxe6 {[%emt 0:00:30]} h3 {[%emt 0:00:30]} 56. Ke5 {[%emt 0:00:30]} Kg4 {[%emt 0:00:30]} 57. Rh1 {[%emt 0:00:30]} Kg3 {[%emt 0:00:30]} 58. Kxf5 {[%emt 0:00:30]} h2 {[%emt 0:00:30]} 59. Rxh2 {[%emt 0:00:30]} Kxh2 {[%emt 0:00:30]} 1/2-1/2

[Event "Istanbul Open 2019"]
[Site "Istanbul"]
[Date "2019.09.01"]
[Round "9.14"]
[White "Ozbay, Ece"]
[Black "Demirbas, Emre"]
[Result "0-1"]
[ECO "B40"]
[WhiteElo "2125"]
[BlackElo "1879"]
[Annotator "NA"]
[PlyCount "164"]
[EventDate "2019.08.26"]
[EventType "swiss"]
[EventCountry "TUR"]
[SourceTitle "playchess.com"]
[Source "ChessBase"]
[SourceQuality "1"]
[TimeControl "5400+30"]

1. e4 {[%emt 0:43:30]} c5 {[%emt 0:24:30]} 2. Nf3 {[%emt 0:00:30]} e6 {[%emt 0:00:30]} 3. d4 {[%emt 0:00:30]} cxd4 {[%emt 0:00:30]} 4. Nxd4 {[%emt 0:00:30]} Nf6 {[%emt 0:00:30]} 5. Bd3 {[%emt 0:00:30]} Nc6 {[%emt 0:00:30]} 6. Nxc6 {[%emt 0:00:30]} bxc6 {[%emt 0:00:30]} 7. O-O {[%emt 0:00:30]} d5 {[%emt 0:00:30]} 8. e5 {[%emt 0:00:30]} Nd7 {[%emt 0:00:30]} 9. Re1 {[%emt 0:00:30]} Qc7 {[%emt 0:00:30]} 10. Qe2 {[%emt 0:00:30]} Be7 {[%emt 0:00:30]} 11. c3 {[%emt 0:00:30]} Rb8 {[%emt 0:00:30]} 12. Nd2 {[%emt 0:00:30]} Nc5 {[%emt 0:00:30]} 13. Bc2 {[%emt 0:00:30]} Ba6 {[%emt 0:00:30]} 14. Qg4 {[%emt 0:00:30]} g6 {[%emt 0:00:30]} 15. Re3 {[%emt 0:00:30]} h5 {[%emt 0:00:30]} 16. Qf4 {[%emt 0:00:30]} f5 {[%emt 0:00:30]} 17. h4 {[%emt 0:00:30]} Kd7 {[%emt 0:00:30]} 18. Nf3 {[%emt 0:00:30]} Ne4 {[%emt 0:00:30]} 19. Ng5 {[%emt 0:00:30]} Rbf8 {[%emt 0:00:30]} 20. Bd3 {[%emt 0:00:30]} Qb6 {[%emt 0:00:30]} 21. Bxa6 {[%emt 0:00:30]} Qxa6 {[%emt 0:00:30]} 22. Re1 {[%emt 0:00:30]} Nxg5 {[%emt 0:00:30]} 23. hxg5 {[%emt 0:00:30]} h4 {[%emt 0:00:30]} 24. Be3 {[%emt 0:00:30]} Rh5 {[%emt 0:00:30]} 25. Qd4 {[%emt 0:00:30]} c5 {[%emt 0:00:30]} 26. Qd2 {[%emt 0:00:30]} Qc4 {[%emt 0:00:30]} 27. Bf4 {[%emt 0:00:30]} Rd8 {[%emt 0:00:30]} 28. b3 {[%emt 0:00:30]} Qa6 {[%emt 0:00:30]} 29. Rad1 {[%emt 0:00:30]} Ke8 {[%emt 0:00:30]} 30. Kh2 {[%emt 0:00:30]} Kf7 {[%emt 0:00:30]} 31. Be3 {[%emt 0:00:30]} Qc6 {[%emt 0:00:30]} 32. f3 {[%emt 0:00:30]} h3 {[%emt 0:00:30]} 33. g4 {[%emt 0:00:30]} fxg4 {[%emt 0:00:30]} 34. fxg4 {[%emt 0:00:30]} Rhh8 {[%emt 0:00:30]} 35. Rf1+ {[%emt 0:00:30]} Kg7 {[%emt 0:00:30]} 36. Qf2 {[%emt 0:00:30]} Rdf8 {[%emt 0:00:30]} 37. Qg3 {[%emt 0:00:30]} Qa6 {[%emt 0:00:30]} 38. Rxf8 {[%emt 0:00:30]} Rxf8 {[%emt 0:00:30]} 39. Rd2 {[%emt 0:00:30]} d4 {[%emt 0:00:30]} 40. cxd4 {[%emt 0:00:30]} cxd4 {[%emt 0:00:30]} 41. Bxd4 {[%emt 0:00:30]} Bxg5 {[%emt 0:00:30]} 42. Be3 {[%emt 0:00:30]} Be7 {[%emt 0:00:30]} 43. Rf2 {[%emt 0:00:30]} Rxf2+ {[%emt 0:00:30]} 44. Qxf2 {[%emt 0:00:30]} Qd3 {[%emt 0:00:30]} 45. Qg3 {[%emt 0:00:30]} Qe2+ {[%emt 0:00:30]} 46. Kxh3 {[%emt 0:00:30]} Qxa2 {[%emt 0:00:30]} 47. Bf2 {[%emt 0:00:30]} Bg5 {[%emt 0:00:30]} 48. Kg2 {[%emt 0:00:30]} Qe2 {[%emt 0:00:30]} 49. Kh3 {[%emt 0:00:30]} Qe4 {[%emt 0:00:30]} 50. Qg1 {[%emt 0:00:30]} Bf4 {[%emt 0:00:30]} 51. Bg3 {[%emt 0:00:30]} Be3 {[%emt 0:00:30]} 52. Qf1 {[%emt 0:00:30]} Bg5 {[%emt 0:00:30]} 53. Qg2 {[%emt 0:00:30]} Qb1 {[%emt 0:00:30]} 54. Qf3 {[%emt 0:00:30]} a5 {[%emt 0:00:30]} 55. Bf2 {[%emt 0:00:30]} Qf1+ {[%emt 0:00:30]} 56. Qg2 {[%emt 0:00:30]} Qd3+ {[%emt 0:00:30]} 57. Qg3 {[%emt 0:00:30]} Qe4 {[%emt 0:00:30]} 58. Qg1 {[%emt 0:00:30]} Bf4 {[%emt 0:00:30]} 59. Bg3 {[%emt 0:00:30]} Bxe5 {[%emt 0:00:30]} 60. Qa7+ {[%emt 0:00:30]} Kf6 {[%emt 0:00:30]} 61. Qf2+ {[%emt 0:00:30]} Ke7 {[%emt 0:00:30]} 62. Qa2 {[%emt 0:00:30]} Kf6 {[%emt 0:00:30]} 63. Qf2+ {[%emt 0:00:30]} Kg7 {[%emt 0:00:30]} 64. Qa2 {[%emt 0:00:30]} Kh6 {[%emt 0:00:30]} 65. Bxe5 {[%emt 0:00:30]} Qxe5 {[%emt 0:00:30]} 66. Qf2 {[%emt 0:00:30]} Qc3+ {[%emt 0:00:30]} 67. Kg2 {[%emt 0:00:30]} Kg5 {[%emt 0:00:30]} 68. Qb6 {[%emt 0:00:30]} Qd2+ {[%emt 0:00:30]} 69. Kh3 {[%emt 0:00:30]} Qd3+ {[%emt 0:00:30]} 70. Kg2 {[%emt 0:00:30]} Qe2+ {[%emt 0:00:30]} 71. Kh1 {[%emt 0:00:30]} Qe1+ {[%emt 0:00:30]} 72. Kg2 {[%emt 0:00:30]} Kxg4 {[%emt 0:00:30]} 73. Qd4+ {[%emt 0:00:30]} Kf5 {[%emt 0:00:30]} 74. Qd8 {[%emt 0:00:30]} Qe2+ {[%emt 0:00:30]} 75. Kg1 {[%emt 0:00:30]} Qe4 {[%emt 0:00:30]} 76. Qxa5+ {[%emt 0:00:30]} Kg4 {[%emt 0:00:30]} 77. Qa4 {[%emt 0:00:30]} Kf3 {[%emt 0:00:30]} 78. Qxe4+ {[%emt 0:00:30]} Kxe4 {[%emt 0:00:30]} 79. Kf2 {[%emt 0:00:30]} Kd4 {[%emt 0:00:30]} 80. Kf3 {[%emt 0:00:30]} Kc3 {[%emt 0:00:30]} 81. Ke4 {[%emt 0:00:30]} Kxb3 {[%emt 0:00:30]} 82. Ke5 {[%emt 0:00:30]} g5 {[%emt 0:00:30]} 0-1